fUSD/lending_fUSD_20260427
["ID","MTS","AMOUNT","RATE_DAILY","PERIOD"]
[421238207,1777286356627,500.0,0.00032876,120]
[421238208,1777286359139,556.83299708,0.00032876,120]
[421238209,1777286359941,500.0,0.00032876,120]
[421238210,1777286360545,500.0,0.00032876,120]
[421238211,1777286361403,690.22,0.00032876,120]
[421238212,1777286361565,1041.51,0.00032876,120]
[421238213,1777286361641,420.95873712,0.00032876,120]
[421238214,1777286362423,500.0,0.00032876,120]
[421238215,1777286362529,638.55793001,0.00032876,120]
[421238216,1777286362741,500.0,0.00032876,120]
[421238217,1777286363228,500.0,0.00032876,120]
[421238218,1777286364269,817.53,0.00032876,120]
[421238219,1777286365035,8222.16,0.00032876,120]
[421238220,1777286366252,551.51600976,0.00032876,120]
[421238221,1777286367410,500.0,0.00032876,120]
[421238222,1777286367653,451.35480293,0.00032876,120]
[421238223,1777286368441,1860.57,0.00032876,120]
[421238224,1777286368907,500.0,0.00032876,120]
[421238225,1777286368977,231.00302444,0.00032876,120]
[421238226,1777286369035,500.0,0.00032876,120]
[421238227,1777286371116,623.21692593,0.00032876,120]
[421238228,1777286372163,486.2593917,0.00032876,120]
[421238229,1777286372727,795.41,0.00032876,120]
[421238230,1777286372922,500.0,0.00032876,120]
[421238231,1777286373622,948.08,0.00032876,120]
[421238232,1777286374058,500.0,0.00032876,120]
[421238233,1777286374996,812.8,0.00032876,120]
[421238234,1777286375035,858.5,0.00032876,120]
[421238235,1777286375332,500.0,0.00032876,120]
[421238236,1777286375899,215.86960076,0.00032876,120]
[421238237,1777286376052,501.67179071,0.00032876,120]
[421238238,1777286378137,500.0,0.00032876,120]
[421238239,1777286378175,150.0,0.00032877,120]
[421238240,1777286379411,500.0,0.00032876,120]
[421238241,1777286379596,604.68905808,0.00032876,120]
[421238242,1777286382082,343.99858665,0.00032876,120]
[421238243,1777286384253,500.0,0.00032876,120]
[421238244,1777286384895,500.0,0.00032876,120]
[421238245,1777286384934,500.0,0.00032876,120]
[421238246,1777286385443,500.0,0.00032876,120]
[421238247,1777286386462,500.0,0.00032876,120]
[421238248,1777286386956,1562.9,0.00032876,120]
[421238249,1777286387631,894.99,0.00032876,120]
[421238250,1777286387756,1018.47,0.00032876,120]
[421238251,1777286388096,580.83016694,0.00032876,120]
[421238252,1777286389038,500.0,0.00032876,120]
[421238253,1777286389490,381.84668354,0.00032876,120]
[421238254,1777286389893,500.0,0.00032876,120]
[421238255,1777286390754,500.0,0.00032876,120]
[421238256,1777286392804,777.9,0.00032876,120]
[421238257,1777286392840,1134.66,0.00032876,120]
[421238258,1777286393522,500.0,0.00032876,120]
[421238259,1777286393583,3418.25,0.00032876,120]
[421238260,1777286395987,500.0,0.00032876,120]
[421238261,1777286396163,500.0,0.00032876,120]
[421238262,1777286396832,196.56171745,0.00032876,120]
[421238263,1777286396927,985.68,0.00032876,120]
[421238264,1777286398507,536.2015224,0.00032876,120]
[421238265,1777286400456,500.0,0.00032876,120]
[421238266,1777286400917,654.65,0.00032876,120]
[421238267,1777286400957,969.65,0.00032876,120]
[421238268,1777286401619,353.44202199,0.00032876,120]
[421238269,1777286403365,500.0,0.00032876,120]
[421238270,1777286403458,500.0,0.00032876,120]
[421238271,1777286403494,500.0,0.00032876,120]
[421238272,1777286403530,541.94292453,0.00032876,120]
[421238273,1777286404376,500.0,0.00032876,120]
[421238274,1777286404952,500.0,0.0003287,120]
[421238275,1777286405900,216.62471433,0.00032876,120]
[421238276,1777286406604,500.0,0.00032876,120]
[421238277,1777286406671,526.99,0.00032876,120]
[421238278,1777286406931,340.82087719,0.00032876,120]
[421238279,1777286407094,500.0,0.00032876,120]
[421238280,1777286407157,500.0,0.00032876,120]
[421238281,1777286407623,500.0,0.00032876,120]
[421238282,1777286407865,500.0,0.00032876,120]
[421238283,1777286408699,858.76,0.00032876,120]
[421238284,1777286410701,500.0,0.00032876,120]
[421238285,1777286410783,500.0,0.00032876,120]
[421238286,1777286410982,500.0,0.00032876,120]
[421238287,1777286411242,500.0,0.00032876,120]
[421238288,1777286411833,500.7567482,0.00032876,120]
[421238289,1777286413014,156.60513187,0.00032876,120]
[421238290,1777286413261,500.35052272,0.00032876,120]
[421238291,1777286413335,619.58399063,0.00032876,120]
[421238292,1777286414006,220.4563293,0.00032876,120]
[421238293,1777286414365,500.0,0.00032876,120]
[421238294,1777286414864,500.0,0.00032876,120]
[421238295,1777286414955,852.24,0.00032876,120]
[421238296,1777286415006,617.25367642,0.00032876,120]
[421238297,1777286415045,500.0,0.00032876,120]
[421238298,1777286415713,770.15,0.00032876,120]
[421238299,1777286415995,3174.61,0.00032876,120]
[421238300,1777286416825,500.62459233,0.00032876,120]
[421238301,1777286417958,209.2913324,0.00032876,120]
[421238302,1777286418182,500.0,0.00032876,120]
[421238303,1777286418606,747.23,0.00032876,120]
[421238304,1777286419587,580.91682531,0.00032876,120]
[421238305,1777286419778,592.21,0.00032876,120]
[421238306,1777286420018,273.92450363,0.00032876,120]
[421238307,1777286420458,500.0,0.00032876,120]
[421238308,1777286421408,1884.36,0.00032876,120]
[421238309,1777286421955,288.67691824,0.00032876,120]
[421238310,1777286422667,500.0,0.00032876,120]
[421238311,1777286423305,500.0,0.00032876,120]
[421238312,1777286423416,806.63,0.00032876,120]
[421238313,1777286423905,500.0,0.00032876,120]
[421238314,1777286424327,500.0,0.00032876,120]
[421238315,1777286424446,270.41150337,0.00032876,120]
[421238316,1777286425762,256.70447543,0.00032876,120]
[421238317,1777286425833,196.66020201,0.00032876,120]
[421238318,1777286425933,500.0,0.00032876,120]
[421238319,1777286426257,252.54087703,0.00032876,120]
[421238320,1777286426940,358.27817896,0.00032876,120]
[421238321,1777286427346,1047.65,0.00032876,120]
[421238322,1777286427441,761.08,0.00032876,120]
[421238323,1777286427665,500.0,0.00032876,120]
[421238324,1777286427732,330.77726079,0.00032876,120]
[421238325,1777286428883,5134.41,0.00032876,120]
[421238326,1777286429213,500.0,0.00032876,120]
[421238327,1777286429508,271.3478663,0.00032876,120]
[421238328,1777286430635,500.0,0.00032876,120]
[421238329,1777286432565,413.82519107,0.00032876,120]
[421238330,1777286432600,853.18,0.00032876,120]
[421238331,1777286432633,247.51484084,0.00032876,120]
[421238332,1777286432767,500.0,0.00032876,120]
[421238333,1777286433028,502.0406583,0.00032876,120]
[421238334,1777286434279,681.1,0.00032876,120]
[421238335,1777286434565,1549.68,0.00032876,120]
[421238336,1777286434790,500.0,0.00032876,120]
[421238337,1777286435110,2158.78,0.00032876,120]
[421238338,1777286435151,1193.97,0.00032876,120]
[421238339,1777286435573,965.38,0.00032876,120]
[421238340,1777286436636,500.0,0.00032876,120]
[421238341,1777286436767,254.26044448,0.00032876,120]
[421238342,1777286438140,500.0,0.00032876,120]
[421238343,1777286438370,500.0,0.00032876,120]
[421238344,1777286438684,244.24062454,0.00032876,120]
[421238345,1777286438934,578.23979283,0.00032876,120]
[421238346,1777286440152,500.0,0.00032876,120]
[421238347,1777286440194,500.0,0.00032876,120]
[421238348,1777286441165,500.0,0.00032876,120]
[421238349,1777286441826,500.0,0.00032876,120]
[421238350,1777286441886,227.83621036,0.00032876,120]
[421238351,1777286442323,500.0,0.00032876,120]
[421238352,1777286443226,688.45,0.00032876,120]
[421238353,1777286443416,500.0,0.00032876,120]
[421238354,1777286443512,500.0,0.00032876,120]
[421238355,1777286443585,500.0,0.00032876,120]
[421238356,1777286444365,163.43664646,0.00032876,120]
[421238357,1777286444594,500.0,0.00032876,120]
[421238358,1777286445863,548.93,0.00032876,120]
[421238359,1777286445898,500.0,0.00032876,120]
[421238360,1777286446001,500.73315114,0.00032876,120]
[421238361,1777286446052,500.0,0.00032876,120]
[421238362,1777286446272,500.0,0.00032876,120]
[421238363,1777286446354,500.0,0.00032876,120]
[421238364,1777286446505,1366.62,0.00032876,120]
[421238365,1777286446986,500.0,0.00032876,120]
[421238366,1777286447260,500.19447702,0.00032876,120]
[421238367,1777286448766,246.37485307,0.00032876,120]
[421238368,1777286449040,500.0,0.00032876,120]
[421238369,1777286449096,891.99,0.00032876,120]
[421238370,1777286449442,500.0,0.00032876,120]
[421238371,1777286449728,350.1,0.00032877,120]
[421238372,1777286450055,500.0,0.00032876,120]
[421238373,1777286450924,500.0,0.00032876,120]
[421238374,1777286451021,500.0,0.00032876,120]
[421238375,1777286451055,500.6626792,0.00032876,120]
[421238376,1777286451898,500.0,0.00032876,120]
[421238377,1777286452432,555.96908729,0.00032876,120]
[421238378,1777286452637,500.0,0.00032876,120]
[421238379,1777286452879,500.0,0.00032876,120]
[421238380,1777286454467,11509.94,0.00032876,120]
[421238381,1777286454762,1223.61,0.00032876,120]
[421238382,1777286455383,500.0,0.00032876,120]
[421238383,1777286455611,500.0,0.00032876,120]
[421238384,1777286455837,1885.25,0.00032876,120]
[421238385,1777286456278,500.0,0.00032876,120]
[421238386,1777286456612,501.02882489,0.00032876,120]
[421238387,1777286457300,500.0,0.00032876,120]
[421238388,1777286457852,1619.53,0.00032876,120]
[421238389,1777286458077,920.18,0.00032876,120]
[421238390,1777286458183,557.56596648,0.00032876,120]
[421238391,1777286458348,500.0,0.00032876,120]
[421238392,1777286458492,865.83,0.00032876,120]
[421238393,1777286459384,252.04833438,0.00032876,120]
[421238394,1777286459846,1242.85,0.00032876,120]
[421238395,1777286460147,632.88,0.00032876,120]
[421238396,1777286460325,810.82,0.00032876,120]
[421238397,1777286460365,500.93100466,0.00032876,120]
[421238398,1777286461498,500.0,0.00032876,120]
[421238399,1777286461662,696.25,0.00032876,120]
[421238400,1777286462579,500.0,0.00032876,120]
[421238401,1777286462988,2009.35,0.00032876,120]
[421238402,1777286463198,500.0,0.00032876,120]
[421238403,1777286464995,500.0,0.00032876,120]
[421238404,1777286465264,2870.3,0.00032876,120]
[421238405,1777286465485,500.0,0.00032876,120]
[421238406,1777286466530,500.0,0.00032876,120]
[421238407,1777286466787,500.0,0.00032876,120]
[421238408,1777286467960,500.0,0.00032876,120]
[421238409,1777286470916,500.0,0.00032876,120]
[421238410,1777286471310,637.1815,0.00032876,120]
[421238411,1777286471387,500.0,0.00032876,120]
[421238412,1777286471444,500.0,0.00032876,120]
[421238413,1777286472605,171.24794072,0.00032876,120]
[421238414,1777286472936,212.44975892,0.00032876,120]
[421238415,1777286474449,500.0,0.00032876,120]
[421238416,1777286474760,151.26036044,0.00032876,120]
[421238417,1777286474806,5123.15,0.00032876,120]
[421238418,1777286475744,400.86663112,0.00032876,120]
[421238419,1777286475922,500.0,0.00032876,120]
[421238420,1777286477242,173.08335158,0.00032876,120]
[421238421,1777286477359,500.0,0.00032876,120]
[421238422,1777286477436,1579.01,0.00032876,120]
[421238423,1777286477864,500.0,0.00032876,120]
[421238424,1777286477907,500.0,0.00032876,120]
[421238425,1777286477944,601.37,0.00032876,120]
[421238426,1777286478006,500.0,0.00032876,120]
[421238427,1777286479016,424.64752925,0.00032876,120]
[421238428,1777286479162,178.99334134,0.00032876,120]
[421238429,1777286479947,843.58,0.00032876,120]
[421238430,1777286480567,1456.44,0.00032876,120]
[421238431,1777286480911,595.98,0.00032876,120]
[421238432,1777286482432,500.0,0.00032876,120]
[421238433,1777286482636,1572.92,0.00032876,120]
[421238434,1777286482847,807.51,0.00032876,120]
[421238435,1777286483296,172.12637104,0.00032876,120]
[421238436,1777286484475,205.21913617,0.00032876,120]
[421238437,1777286485069,184.93275479,0.00032876,120]
[421238438,1777286485273,262.08936601,0.00032876,120]
[421238439,1777286486513,500.0,0.00032876,120]
[421238440,1777286486651,500.0,0.00032876,120]
[421238441,1777286486781,500.0,0.00032876,120]
[421238442,1777286486886,500.0,0.00032876,120]
[421238443,1777286487458,5718.61,0.00032876,120]
[421238444,1777286487817,938.03,0.00032876,120]
[421238445,1777286488621,500.0,0.00032876,120]
[421238446,1777286488890,1223.21,0.00032876,120]
[421238447,1777286488924,500.0,0.00032876,120]
[421238448,1777286489040,500.0,0.00032876,120]
[421238449,1777286490082,215.58802449,0.00032876,120]
[421238450,1777286490531,940.15,0.00032876,120]
[421238451,1777286491756,500.0,0.00032876,120]
[421238452,1777286492271,970.82,0.00032876,120]
[421238453,1777286493508,971.34,0.00032876,120]
[421238454,1777286493589,221.90574209,0.00032876,120]
[421238455,1777286493787,500.0,0.00032876,120]
[421238456,1777286493980,987.31,0.00032876,120]
[421238457,1777286494459,500.0,0.00032876,120]
[421238458,1777286494591,500.0,0.00032876,120]
[421238459,1777286495263,685.94,0.00032876,120]
[421238460,1777286495485,996.26,0.00032876,120]
[421238461,1777286495582,500.0,0.00032876,120]
[421238462,1777286495855,500.0,0.00032876,120]
[421238463,1777286496438,500.0,0.00032876,120]
[421238464,1777286499383,253.56544765,0.00032876,120]
[421238465,1777286500254,500.0,0.00032876,120]
[421238466,1777286500910,977.11,0.00032876,120]
[421238467,1777286501515,1642.41,0.00032876,120]
[421238468,1777286502186,500.0,0.00032876,120]
[421238469,1777286502226,1114.4,0.00032876,120]
[421238470,1777286502436,500.36738963,0.00032876,120]
[421238471,1777286502647,401.76186784,0.00032876,120]
[421238472,1777286502787,500.0,0.00032876,120]
[421238473,1777286503580,608.18276042,0.00032876,120]
[421238474,1777286503646,500.0,0.00032876,120]
[421238475,1777286503688,354.73415367,0.00032876,120]
[421238476,1777286504181,500.0,0.00032876,120]
[421238477,1777286504844,922.87,0.00032876,120]
[421238478,1777286506071,500.0,0.00032876,120]
[421238479,1777286506454,500.20709908,0.00032876,120]
[421238480,1777286506525,694.64,0.00032876,120]
[421238481,1777286506589,876.6,0.00032876,120]
[421238482,1777286506843,2804.65,0.00032876,120]
[421238483,1777286507309,500.0,0.00032876,120]
[421238484,1777286508582,500.0,0.00032876,120]
[421238485,1777286509318,228.01133692,0.00032876,120]
[421238486,1777286509849,952.4,0.00032876,120]
[421238487,1777286511522,500.92767988,0.00032876,120]
[421238488,1777286511875,1292.17,0.00032876,120]
[421238489,1777286512148,500.0,0.00032876,120]
[421238490,1777286512536,500.0,0.00032876,120]
[421238491,1777286513313,500.67432817,0.00032876,120]
[421238492,1777286513532,500.0,0.00032876,120]
[421238493,1777286513668,500.0,0.00032876,120]
[421238494,1777286514711,500.0,0.00032876,120]
[421238495,1777286515233,500.0,0.00032876,120]
[421238496,1777286515840,161.3818524,0.00032876,120]
[421238497,1777286516133,500.0,0.00032876,120]
[421238498,1777286517753,1661.77,0.00032876,120]
[421238499,1777286517819,541.09752952,0.00032876,120]
[421238500,1777286519017,11111.39,0.00032876,120]
[421238501,1777286519500,248.03572848,0.00032876,120]
[421238502,1777286519613,218.38042644,0.00032876,120]
[421238503,1777286520774,501.84119806,0.00032876,120]
[421238504,1777286520959,231.66824076,0.00032876,120]
[421238505,1777286521669,695.08,0.00032876,120]
[421238506,1777286524662,975.03,0.00032876,120]
[421238507,1777286524706,506.94027006,0.00032876,120]
[421238508,1777286525731,563.59762473,0.00032876,120]
[421238509,1777286526430,500.0,0.00032876,120]
[421238510,1777286527793,500.0,0.00032876,120]
[421238511,1777286528009,579.99569882,0.00032876,120]
[421238512,1777286528428,500.0,0.00032876,120]
[421238513,1777286530589,196.47584698,0.00032876,120]
[421238514,1777286531061,500.0,0.00032876,120]
[421238515,1777286531969,306.00529377,0.00032876,120]
[421238516,1777286532028,537.87042546,0.00032876,120]
[421238517,1777286532093,311.12139289,0.00032876,120]
[421238518,1777286532140,500.0,0.00032876,120]
[421238519,1777286532298,667.25,0.00032876,120]
[421238520,1777286533510,500.0,0.00032876,120]
[421238521,1777286533987,546.07353762,0.00032876,120]
[421238522,1777286534084,500.0,0.00032876,120]
[421238523,1777286534282,500.0,0.00032876,120]
[421238524,1777286534455,500.0,0.00032876,120]
[421238525,1777286537022,514.22,0.00032876,120]
[421238526,1777286537346,161.18261998,0.00032876,120]
[421238527,1777286537998,500.0,0.00032876,120]
[421238528,1777286538038,370.90792041,0.00032876,120]
[421238529,1777286538366,500.0,0.00032876,120]
[421238530,1777286538462,215.24281832,0.00032876,120]
[421238531,1777286538867,500.0,0.00032876,120]
[421238532,1777286539071,500.0,0.00032876,120]
[421238533,1777286541072,306.52196798,0.00032876,120]
[421238534,1777286541983,473.50100674,0.00032876,120]
[421238535,1777286542565,809.84,0.00032876,120]
[421238536,1777286542618,931.91,0.00032876,120]
[421238537,1777286542834,500.0,0.00032876,120]
[421238538,1777286543759,950.5,0.00032876,120]
[421238539,1777286543797,808.81,0.00032876,120]
[421238540,1777286544055,173.25473113,0.00032876,120]
[421238541,1777286545763,656.37,0.00032876,120]
[421238542,1777286546700,924.49,0.00032876,120]
[421238543,1777286547183,396.16157606,0.00032876,120]
[421238544,1777286547458,1754.83,0.00032876,120]
[421238545,1777286548054,327.04245724,0.00032876,120]
[421238546,1777286548107,501.20685663,0.00032876,120]
[421238547,1777286549000,816.58,0.00032876,120]
[421238548,1777286550165,223.61755678,0.00032876,120]
[421238549,1777286550415,500.0,0.00032876,120]
[421238550,1777286550779,1699.99,0.00032876,120]
[421238551,1777286553064,236.09315282,0.00032876,120]
[421238552,1777286553456,500.0,0.00032876,120]
[421238553,1777286554176,963.43,0.00032876,120]
[421238554,1777286554851,988.21,0.00032876,120]
[421238555,1777286555018,500.0,0.00032876,120]
[421238556,1777286555189,332.58104705,0.00032876,120]
[421238557,1777286555486,500.53170864,0.00032876,120]
[421238558,1777286558001,260.87961942,0.00032876,120]
[421238559,1777286558466,559.89237559,0.00032876,120]
[421238560,1777286558591,634.78689933,0.00032876,120]
[421238561,1777286558817,803.53,0.00032876,120]
[421238562,1777286559969,983.75,0.00032876,120]
[421238563,1777286560255,806.48,0.00032876,120]
[421238564,1777286561259,1721.56,0.00032876,120]
[421238565,1777286562694,522.21091144,0.00032876,120]
[421238566,1777286562935,500.0,0.00032876,120]
[421238567,1777286563656,837.94,0.00032876,120]
[421238568,1777286563812,499.98141499,0.00032876,120]
[421238569,1777286565625,258.8026317,0.00032876,120]
[421238570,1777286565999,899.89,0.00032876,120]
[421238571,1777286567056,1666.52,0.00032876,120]
[421238572,1777286568877,212.86275262,0.00032876,120]
[421238573,1777286568928,2521.05,0.00032876,120]
[421238574,1777286569530,500.0,0.00032876,120]
[421238575,1777286569603,234.50021545,0.00032876,120]
[421238576,1777286569670,500.0,0.00032876,120]
[421238577,1777286570452,500.0,0.00032876,120]
[421238578,1777286571150,903.54,0.00032876,120]
[421238579,1777286571304,1000.0,0.00032876,120]
[421238580,1777286571915,248.64603417,0.00032876,120]
[421238581,1777286572536,186.03070954,0.00032876,120]
[421238582,1777286573400,640.16,0.00032876,120]
[421238583,1777286574098,178.63463065,0.00032876,120]
[421238584,1777286575877,2805.42,0.00032876,120]
[421238585,1777286576103,160.36129614,0.00032876,120]
[421238586,1777286576140,500.0,0.00032876,120]
[421238587,1777286576678,500.0,0.00032876,120]
[421238588,1777286578918,1658.74,0.00032876,120]
[421238589,1777286578987,500.0,0.00032876,120]
[421238590,1777286579023,500.0,0.00032876,120]
[421238591,1777286579600,1235.0,0.00032876,120]
[421238592,1777286579979,507.17,0.00032876,120]
[421238593,1777286580021,500.0,0.00032876,120]
[421238594,1777286580893,500.0,0.00032876,120]
[421238595,1777286581715,760.12,0.00032876,120]
[421238596,1777286582445,1131.48,0.00032876,120]
[421238597,1777286584116,500.0,0.00032876,120]
[421238598,1777286586769,500.0,0.00032876,120]
[421238599,1777286587276,1275.35,0.00032876,120]
[421238600,1777286587333,1746.47,0.00032876,120]
[421238601,1777286587679,500.0,0.00032876,120]
[421238602,1777286588804,1186.63,0.00032876,120]
[421238603,1777286588895,500.0,0.00032876,120]
[421238604,1777286589567,502.21116334,0.00032876,120]
[421238605,1777286589655,183.59615072,0.00032876,120]
[421238606,1777286589986,500.97486981,0.00032876,120]
[421238607,1777286590954,500.0,0.00032876,120]
[421238608,1777286591057,500.0,0.00032876,120]
[421238609,1777286591480,726.02,0.00032876,120]
[421238610,1777286592645,346.25285695,0.00032876,120]
[421238611,1777286592999,500.0,0.00032876,120]
[421238612,1777286593216,1783.04,0.00032876,120]
[421238613,1777286594860,500.0,0.00032876,120]
[421238614,1777286595979,225.33790913,0.00032876,120]
[421238615,1777286596458,857.8,0.00032876,120]
[421238616,1777286597593,500.0,0.00032876,120]
[421238617,1777286597737,908.58,0.00032876,120]
[421238618,1777286600816,500.0,0.00032876,120]
[421238619,1777286601487,942.29,0.00032876,120]
[421238620,1777286602682,500.0,0.00032876,120]
[421238621,1777286604728,7879.57,0.00032876,120]
[421238622,1777286605472,888.77,0.00032876,120]
[421238623,1777286605956,615.52,0.00032876,120]
[421238624,1777286606175,500.0,0.00032876,120]
[421238625,1777286606402,500.0,0.00032876,120]
[421238626,1777286607750,500.0,0.00032876,120]
[421238627,1777286608205,500.0,0.00032876,120]
[421238628,1777286609104,691.21,0.00032876,120]
[421238629,1777286609642,745.49,0.00032876,120]
[421238630,1777286611875,1549.89,0.00032876,120]
[421238631,1777286612063,500.0,0.00032876,120]
[421238632,1777286612427,500.0,0.00032876,120]
[421238633,1777286613104,500.0,0.00032876,120]
[421238634,1777286613238,597.1,0.00032876,120]
[421238635,1777286614378,500.0,0.00032876,120]
[421238636,1777286614725,3275.83,0.00032876,120]
[421238637,1777286617875,248.9242091,0.00032876,120]
[421238638,1777286619050,500.0,0.00032876,120]
[421238639,1777286619171,516.45,0.00032876,120]
[421238640,1777286619306,500.0,0.00032876,120]
[421238641,1777286619635,646.3,0.00032876,120]
[421238642,1777286619705,500.0,0.00032876,120]
[421238643,1777286621016,500.0,0.00032876,120]
[421238644,1777286621717,996.25,0.00032876,120]
[421238645,1777286622703,929.24,0.00032876,120]
[421238646,1777286623036,500.0,0.00032876,120]
[421238647,1777286623161,729.86,0.00032876,120]
[421238648,1777286623295,566.68546619,0.00032876,120]
[421238649,1777286626186,500.0,0.00032876,120]
[421238650,1777286628226,500.0,0.00032876,120]
[421238651,1777286628281,500.0,0.00032876,120]
[421238652,1777286628909,263.21067442,0.00032876,120]
[421238653,1777286628954,543.69946342,0.00032876,120]
[421238654,1777286629044,500.0,0.00032876,120]
[421238655,1777286629675,500.0,0.00032876,120]
[421238656,1777286629911,283.28367178,0.00032876,120]
[421238657,1777286630091,862.2,0.00032876,120]
[421238658,1777286630372,325.86317235,0.00032876,120]
[421238659,1777286630658,902.68,0.00032876,120]
[421238660,1777286630699,500.0,0.00032876,120]
[421238661,1777286630932,255.071209,0.00032876,120]
[421238662,1777286632080,1087.39,0.00032876,120]
[421238663,1777286632561,932.95,0.00032876,120]
[421238664,1777286635000,531.97699808,0.00032876,120]
[421238665,1777286636047,500.0,0.00032876,120]
[421238666,1777286637207,501.5,0.00032876,120]
[421238667,1777286637814,932.07,0.00032876,120]
[421238668,1777286637852,165.24659863,0.00032876,120]
[421238669,1777286637891,230.48698991,0.00032876,120]
[421238670,1777286639574,500.0,0.00032876,120]
[421238671,1777286639798,773.02,0.00032876,120]
[421238672,1777286639882,500.0,0.00032876,120]
[421238673,1777286640016,500.0,0.00032876,120]
[421238674,1777286640838,590.90246601,0.00032876,120]
[421238675,1777286641737,4920.47,0.00032876,120]
[421238676,1777286641903,638.61,0.00032876,120]
[421238677,1777286641942,946.6,0.00032876,120]
[421238678,1777286642720,500.0,0.00032876,120]
[421238679,1777286643856,311.4845999,0.00032876,120]
[421238680,1777286644261,500.0,0.00032876,120]
[421238681,1777286646379,1014.18,0.00032876,120]
[421238682,1777286647082,500.0,0.00032876,120]
[421238683,1777286647168,713.68,0.00032876,120]
[421238684,1777286648279,714.89,0.00032876,120]
[421238685,1777286648944,817.63,0.00032876,120]
[421238686,1777286649063,1988.17,0.00032876,120]
[421238687,1777286649943,500.0,0.00032876,120]
[421238688,1777286650363,500.0,0.00032876,120]
[421238689,1777286650921,500.0,0.00032876,120]
[421238690,1777286653489,500.0,0.00032876,120]
[421238691,1777286653706,563.81,0.00032876,120]
[421238692,1777286655362,500.0,0.00032876,120]
[421238693,1777286656061,3042.33,0.00032876,120]
[421238694,1777286656350,363.77834733,0.00032876,120]
[421238695,1777286656631,500.0,0.00032876,120]
[421238696,1777286656858,581.24051218,0.00032876,120]
[421238697,1777286657236,500.0,0.00032876,120]
[421238698,1777286658241,208.38989227,0.00032876,120]
[421238699,1777286658544,260.1573348,0.00032876,120]
[421238700,1777286658872,500.0,0.00032876,120]
[421238701,1777286659701,245.10843003,0.00032876,120]
[421238702,1777286661054,577.18348791,0.00032876,120]
[421238703,1777286661220,500.0,0.00032876,120]
[421238704,1777286661271,500.0,0.00032876,120]
[421238705,1777286661695,239.93729314,0.00032876,120]
[421238706,1777286661733,500.0,0.00032876,120]